Workbook

Sheet Pots
B2: We Global Football - World Cup 2022 Pots - Follow on Twitter @We_Global
X3: Qatar | Y3: =INDEX('Rankings - ELO Model'!$C$2:$C$212,MATCH($X3,'Rankings - ELO Model'!$B$2:$B$212,0)) -> AFC | Z3: =INDEX('Rankings - ELO Model'!$A$2:$A$212,MATCH($X3,'Rankings - ELO Model'!$B$2:$B$212,0)) -> 51 | AA3: 1 | AB3: =INDEX('Rankings - ELO Model'!$D$2:$D$212,MATCH($X3,'Rankings - ELO Model'!$B$2:$B$212,0)) -> 1441.413003 | AD3: United Arab Emirates
B4: Pot | C4: Team | D4: CONFED | E4: Rank | F4: Points | H4: Pot | I4: Team | J4: CONFED | K4: Rank | L4: Points | X4: Belgium | Y4: =INDEX('Rankings - ELO Model'!$C$2:$C$212,MATCH($X4,'Rankings - ELO Model'!$B$2:$B$212,0)) -> UEFA | Z4: =INDEX('Rankings - ELO Model'!$A$2:$A$212,MATCH($X4,'Rankings - ELO Model'!$B$2:$B$212,0)) -> 2 | AA4: =RANK($Z4,$Z$4:$Z$31,1)+1 -> 3 | AB4: =INDEX('Rankings - ELO Model'!$D$2:$D$212,MATCH($X4,'Rankings - ELO Model'!$B$2:$B$212,0)) -> 1827.003982 | AD4: Australia
B5: 1 | C5: =INDEX($X$3:$X$34,MATCH($N5,$AA$3:$AA$34,0)) -> Qatar | D5: =VLOOKUP(C5,$X$3:$AB$34,2,FALSE) -> AFC | E5: =VLOOKUP(C5,$X$3:$AB$34,3,FALSE) -> 51 | F5: =VLOOKUP(C5,$X$3:$AB$34,5,FALSE) -> 1441.413003 | H5: 3 | I5: =INDEX($X$3:$X$34,MATCH($O5,$AA$3:$AA$34,0)) -> Senegal | J5: =VLOOKUP(I5,$X$3:$AB$34,2,FALSE) -> CAF | K5: =VLOOKUP(I5,$X$3:$AB$34,3,FALSE) -> 20 | L5: =VLOOKUP(I5,$X$3:$AB$34,5,FALSE) -> 1584.159511 | N5: 1 | O5: 17 | X5: Croatia | Y5: =INDEX('Rankings - ELO Model'!$C$2:$C$212,MATCH($X5,'Rankings - ELO Model'!$B$2:$B$212,0)) -> UEFA | Z5: =INDEX('Rankings - ELO Model'!$A$2:$A$212,MATCH($X5,'Rankings - ELO Model'!$B$2:$B$212,0)) -> 16 | AA5: 16 | AB5: =INDEX('Rankings - ELO Model'!$D$2:$D$212,MATCH($X5,'Rankings - ELO Model'!$B$2:$B$212,0)) -> 1621.110548 | AD5: Peru
C6: Brazil | D6: CONMEBOL | E6: 1 | F6: 1832.689152 | I6: Iran | J6: AFC | K6: 21 | L6: 1564.488687 | N6: 2 | O6: 18 | X6: Denmark | Y6: =INDEX('Rankings - ELO Model'!$C$2:$C$212,MATCH($X6,'Rankings - ELO Model'!$B$2:$B$212,0)) -> UEFA | Z6: =INDEX('Rankings - ELO Model'!$A$2:$A$212,MATCH($X6,'Rankings - ELO Model'!$B$2:$B$212,0)) -> 11 | AA6: 11 | AB6: =INDEX('Rankings - ELO Model'!$D$2:$D$212,MATCH($X6,'Rankings - ELO Model'!$B$2:$B$212,0)) -> 1653.601335
C7: Belgium | D7: UEFA | E7: 2 | F7: 1827.003982 | I7: Japan | J7: AFC | K7: 23 | L7: 1553.443872 | N7: 3 | O7: 19 | X7: England | Y7: =INDEX('Rankings - ELO Model'!$C$2:$C$212,MATCH($X7,'Rankings - ELO Model'!$B$2:$B$212,0)) -> UEFA | Z7: =INDEX('Rankings - ELO Model'!$A$2:$A$212,MATCH($X7,'Rankings - ELO Model'!$B$2:$B$212,0)) -> 5 | AA7: 6 | AB7: =INDEX('Rankings - ELO Model'!$D$2:$D$212,MATCH($X7,'Rankings - ELO Model'!$B$2:$B$212,0)) -> 1761.711533 | AD7: Costa Rica
C8: France | D8: UEFA | E8: 3 | F8: 1789.847962 | I8: Morocco | J8: CAF | K8: 24 | L8: 1551.881727 | N8: 4 | O8: 20 | X8: France | Y8: =INDEX('Rankings - ELO Model'!$C$2:$C$212,MATCH($X8,'Rankings - ELO Model'!$B$2:$B$212,0)) -> UEFA | Z8: =INDEX('Rankings - ELO Model'!$A$2:$A$212,MATCH($X8,'Rankings - ELO Model'!$B$2:$B$212,0)) -> 3 | AA8: 4 | AB8: =INDEX('Rankings - ELO Model'!$D$2:$D$212,MATCH($X8,'Rankings - ELO Model'!$B$2:$B$212,0)) -> 1789.847962 | AD8: New Zealand
C9: Argentina | D9: CONMEBOL | E9: 4 | F9: 1765.132502 | I9: Serbia | J9: UEFA | K9: 25 | L9: 1547.525841 | N9: 5 | O9: 21 | X9: Germany | Y9: =INDEX('Rankings - ELO Model'!$C$2:$C$212,MATCH($X9,'Rankings - ELO Model'!$B$2:$B$212,0)) -> UEFA | Z9: =INDEX('Rankings - ELO Model'!$A$2:$A$212,MATCH($X9,'Rankings - ELO Model'!$B$2:$B$212,0)) -> 12 | AA9: 12 | AB9: =INDEX('Rankings - ELO Model'!$D$2:$D$212,MATCH($X9,'Rankings - ELO Model'!$B$2:$B$212,0)) -> 1650.534775
C10: England | D10: UEFA | E10: 5 | F10: 1761.711533 | I10: Poland | J10: UEFA | K10: 26 | L10: 1544.203645 | N10: 6 | O10: 22 | X10: Netherlands | Y10: =INDEX('Rankings - ELO Model'!$C$2:$C$212,MATCH($X10,'Rankings - ELO Model'!$B$2:$B$212,0)) -> UEFA | Z10: =INDEX('Rankings - ELO Model'!$A$2:$A$212,MATCH($X10,'Rankings - ELO Model'!$B$2:$B$212,0)) -> 10 | AA10: 10 | AB10: =INDEX('Rankings - ELO Model'!$D$2:$D$212,MATCH($X10,'Rankings - ELO Model'!$B$2:$B$212,0)) -> 1658.655982 | AD10: Wales
C11: Spain | D11: UEFA | E11: 7 | F11: 1709.193894 | I11: Korea Republic | J11: AFC | K11: 29 | L11: 1519.538073 | N11: 7 | O11: 23 | X11: Serbia | Y11: =INDEX('Rankings - ELO Model'!$C$2:$C$212,MATCH($X11,'Rankings - ELO Model'!$B$2:$B$212,0)) -> UEFA | Z11: =INDEX('Rankings - ELO Model'!$A$2:$A$212,MATCH($X11,'Rankings - ELO Model'!$B$2:$B$212,0)) -> 25 | AA11: 21 | AB11: =INDEX('Rankings - ELO Model'!$D$2:$D$212,MATCH($X11,'Rankings - ELO Model'!$B$2:$B$212,0)) -> 1547.525841 | AD11: Scotland
C12: Portugal | D12: UEFA | E12: 8 | F12: 1674.782427 | I12: Tunisia | J12: CAF | K12: =VLOOKUP(I12,$X$3:$AB$34,3,FALSE) -> 35 | L12: =VLOOKUP(I12,$X$3:$AB$34,5,FALSE) -> 1499.802029 | N12: 8 | O12: 24 | X12: Spain | Y12: =INDEX('Rankings - ELO Model'!$C$2:$C$212,MATCH($X12,'Rankings - ELO Model'!$B$2:$B$212,0)) -> UEFA | Z12: =INDEX('Rankings - ELO Model'!$A$2:$A$212,MATCH($X12,'Rankings - ELO Model'!$B$2:$B$212,0)) -> 7 | AA12: 7 | AB12: =INDEX('Rankings - ELO Model'!$D$2:$D$212,MATCH($X12,'Rankings - ELO Model'!$B$2:$B$212,0)) -> 1709.193894 | AD12: Ukraine
X13: Switzerland | Y13: =INDEX('Rankings - ELO Model'!$C$2:$C$212,MATCH($X13,'Rankings - ELO Model'!$B$2:$B$212,0)) -> UEFA | Z13: =INDEX('Rankings - ELO Model'!$A$2:$A$212,MATCH($X13,'Rankings - ELO Model'!$B$2:$B$212,0)) -> 14 | AA13: 14 | AB13: =INDEX('Rankings - ELO Model'!$D$2:$D$212,MATCH($X13,'Rankings - ELO Model'!$B$2:$B$212,0)) -> 1635.315123
B14: Pot | C14: Team | D14: CONFED | E14: Rank | F14: Points | H14: Pot | I14: Team | J14: CONFED | K14: Rank | L14: Points | X14: Iran | Y14: =INDEX('Rankings - ELO Model'!$C$2:$C$212,MATCH($X14,'Rankings - ELO Model'!$B$2:$B$212,0)) -> AFC | Z14: =INDEX('Rankings - ELO Model'!$A$2:$A$212,MATCH($X14,'Rankings - ELO Model'!$B$2:$B$212,0)) -> 21 | AA14: 18 | AB14: =INDEX('Rankings - ELO Model'!$D$2:$D$212,MATCH($X14,'Rankings - ELO Model'!$B$2:$B$212,0)) -> 1564.488687
B15: 2 | C15: =INDEX($X$3:$X$34,MATCH($N15,$AA$3:$AA$34,0)) -> Mexico | D15: =VLOOKUP(C15,$X$3:$AB$34,2,FALSE) -> CONCACAF | E15: =VLOOKUP(C15,$X$3:$AB$34,3,FALSE) -> 9 | F15: =VLOOKUP(C15,$X$3:$AB$34,5,FALSE) -> 1658.822605 | H15: 4 | I15: =INDEX($X$3:$X$34,MATCH($O15,$AA$3:$AA$34,0)) -> Cameroon | J15: =VLOOKUP(I15,$X$3:$AB$34,2,FALSE) -> CAF | K15: =VLOOKUP(I15,$X$3:$AB$34,3,FALSE) -> 37 | L15: =VLOOKUP(I15,$X$3:$AB$34,5,FALSE) -> 1480.484907 | N15: 9 | O15: 25 | X15: Korea Republic | Y15: =INDEX('Rankings - ELO Model'!$C$2:$C$212,MATCH($X15,'Rankings - ELO Model'!$B$2:$B$212,0)) -> AFC | Z15: =INDEX('Rankings - ELO Model'!$A$2:$A$212,MATCH($X15,'Rankings - ELO Model'!$B$2:$B$212,0)) -> 29 | AA15: 23 | AB15: =INDEX('Rankings - ELO Model'!$D$2:$D$212,MATCH($X15,'Rankings - ELO Model'!$B$2:$B$212,0)) -> 1519.538073
C16: Netherlands | D16: UEFA | E16: 10 | F16: 1658.655982 | I16: Canada | J16: CONCACAF | K16: 38 | L16: 1478.999291 | N16: 10 | O16: 26 | Q16: Follow us on Twitter @ We_Global | X16: Saudi Arabia | Y16: =INDEX('Rankings - ELO Model'!$C$2:$C$212,MATCH($X16,'Rankings - ELO Model'!$B$2:$B$212,0)) -> AFC | Z16: =INDEX('Rankings - ELO Model'!$A$2:$A$212,MATCH($X16,'Rankings - ELO Model'!$B$2:$B$212,0)) -> 49 | AA16: 28 | AB16: =INDEX('Rankings - ELO Model'!$D$2:$D$212,MATCH($X16,'Rankings - ELO Model'!$B$2:$B$212,0)) -> 1444.685108
C17: Denmark | D17: UEFA | E17: 11 | F17: 1653.601335 | I17: Ecuador | J17: CONMEBOL | K17: 46 | L17: 1452.634704 | N17: 11 | O17: 27 | X17: Japan | Y17: =INDEX('Rankings - ELO Model'!$C$2:$C$212,MATCH($X17,'Rankings - ELO Model'!$B$2:$B$212,0)) -> AFC | Z17: =INDEX('Rankings - ELO Model'!$A$2:$A$212,MATCH($X17,'Rankings - ELO Model'!$B$2:$B$212,0)) -> 23 | AA17: 19 | AB17: =INDEX('Rankings - ELO Model'!$D$2:$D$212,MATCH($X17,'Rankings - ELO Model'!$B$2:$B$212,0)) -> 1553.443872
C18: Germany | D18: UEFA | E18: 12 | F18: 1650.534775 | I18: Saudi Arabia | J18: AFC | K18: 49 | L18: 1444.685108 | N18: 12 | O18: 28 | X18: Cameroon | Y18: =INDEX('Rankings - ELO Model'!$C$2:$C$212,MATCH($X18,'Rankings - ELO Model'!$B$2:$B$212,0)) -> CAF | Z18: =INDEX('Rankings - ELO Model'!$A$2:$A$212,MATCH($X18,'Rankings - ELO Model'!$B$2:$B$212,0)) -> 37 | AA18: 25 | AB18: =INDEX('Rankings - ELO Model'!$D$2:$D$212,MATCH($X18,'Rankings - ELO Model'!$B$2:$B$212,0)) -> 1480.484907
C19: Uruguay | D19: CONMEBOL | E19: 13 | F19: 1635.734492 | I19: Ghana | J19: CAF | K19: 60 | L19: 1387.356167 | N19: 13 | O19: 29 | X19: Morocco | Y19: =INDEX('Rankings - ELO Model'!$C$2:$C$212,MATCH($X19,'Rankings - ELO Model'!$B$2:$B$212,0)) -> CAF | Z19: =INDEX('Rankings - ELO Model'!$A$2:$A$212,MATCH($X19,'Rankings - ELO Model'!$B$2:$B$212,0)) -> 24 | AA19: 20 | AB19: =INDEX('Rankings - ELO Model'!$D$2:$D$212,MATCH($X19,'Rankings - ELO Model'!$B$2:$B$212,0)) -> 1551.881727
C20: Switzerland | D20: UEFA | E20: 14 | F20: 1635.315123 | I20: Wales | J20: UEFA | K20: 18 | L20: 1588.08201 | N20: 14 | O20: 30 | X20: Senegal | Y20: =INDEX('Rankings - ELO Model'!$C$2:$C$212,MATCH($X20,'Rankings - ELO Model'!$B$2:$B$212,0)) -> CAF | Z20: =INDEX('Rankings - ELO Model'!$A$2:$A$212,MATCH($X20,'Rankings - ELO Model'!$B$2:$B$212,0)) -> 20 | AA20: 17 | AB20: =INDEX('Rankings - ELO Model'!$D$2:$D$212,MATCH($X20,'Rankings - ELO Model'!$B$2:$B$212,0)) -> 1584.159511
C21: USA | D21: CONCACAF | E21: 15 | F21: 1633.715343 | I21: Peru | J21: CONMEBOL | K21: 22 | L21: 1562.320966 | N21: 15 | O21: 31 | X21: Ghana | Y21: =INDEX('Rankings - ELO Model'!$C$2:$C$212,MATCH($X21,'Rankings - ELO Model'!$B$2:$B$212,0)) -> CAF | Z21: =INDEX('Rankings - ELO Model'!$A$2:$A$212,MATCH($X21,'Rankings - ELO Model'!$B$2:$B$212,0)) -> 60 | AA21: 29 | AB21: =INDEX('Rankings - ELO Model'!$D$2:$D$212,MATCH($X21,'Rankings - ELO Model'!$B$2:$B$212,0)) -> 1387.356167
C22: Croatia | D22: UEFA | E22: 16 | F22: 1621.110548 | I22: Costa Rica | J22: CONCACAF | K22: 31 | L22: 1503.094544 | N22: 16 | O22: 32 | X22: Tunisia | Y22: =INDEX('Rankings - ELO Model'!$C$2:$C$212,MATCH($X22,'Rankings - ELO Model'!$B$2:$B$212,0)) -> CAF | Z22: =INDEX('Rankings - ELO Model'!$A$2:$A$212,MATCH($X22,'Rankings - ELO Model'!$B$2:$B$212,0)) -> 35 | AA22: 24 | AB22: =INDEX('Rankings - ELO Model'!$D$2:$D$212,MATCH($X22,'Rankings - ELO Model'!$B$2:$B$212,0)) -> 1499.802029
X23: Canada | Y23: =INDEX('Rankings - ELO Model'!$C$2:$C$212,MATCH($X23,'Rankings - ELO Model'!$B$2:$B$212,0)) -> CONCACAF | Z23: =INDEX('Rankings - ELO Model'!$A$2:$A$212,MATCH($X23,'Rankings - ELO Model'!$B$2:$B$212,0)) -> 38 | AA23: 26 | AB23: =INDEX('Rankings - ELO Model'!$D$2:$D$212,MATCH($X23,'Rankings - ELO Model'!$B$2:$B$212,0)) -> 1478.999291
X24: USA | Y24: =INDEX('Rankings - ELO Model'!$C$2:$C$212,MATCH($X24,'Rankings - ELO Model'!$B$2:$B$212,0)) -> CONCACAF | Z24: =INDEX('Rankings - ELO Model'!$A$2:$A$212,MATCH($X24,'Rankings - ELO Model'!$B$2:$B$212,0)) -> 15 | AA24: 15 | AB24: =INDEX('Rankings - ELO Model'!$D$2:$D$212,MATCH($X24,'Rankings - ELO Model'!$B$2:$B$212,0)) -> 1633.715343
X25: Mexico | Y25: =INDEX('Rankings - ELO Model'!$C$2:$C$212,MATCH($X25,'Rankings - ELO Model'!$B$2:$B$212,0)) -> CONCACAF | Z25: =INDEX('Rankings - ELO Model'!$A$2:$A$212,MATCH($X25,'Rankings - ELO Model'!$B$2:$B$212,0)) -> 9 | AA25: 9 | AB25: =INDEX('Rankings - ELO Model'!$D$2:$D$212,MATCH($X25,'Rankings - ELO Model'!$B$2:$B$212,0)) -> 1658.822605
B26: Select Playoff Winners | H26: UEFA Path A Playoff Winner | X26: Poland | Y26: =INDEX('Rankings - ELO Model'!$C$2:$C$212,MATCH($X26,'Rankings - ELO Model'!$B$2:$B$212,0)) -> UEFA | Z26: =INDEX('Rankings - ELO Model'!$A$2:$A$212,MATCH($X26,'Rankings - ELO Model'!$B$2:$B$212,0)) -> 26 | AA26: 22 | AB26: =INDEX('Rankings - ELO Model'!$D$2:$D$212,MATCH($X26,'Rankings - ELO Model'!$B$2:$B$212,0)) -> 1544.203645
B27: Peru | H27: Wales | X27: Portugal | Y27: =INDEX('Rankings - ELO Model'!$C$2:$C$212,MATCH($X27,'Rankings - ELO Model'!$B$2:$B$212,0)) -> UEFA | Z27: =INDEX('Rankings - ELO Model'!$A$2:$A$212,MATCH($X27,'Rankings - ELO Model'!$B$2:$B$212,0)) -> 8 | AA27: 8 | AB27: =INDEX('Rankings - ELO Model'!$D$2:$D$212,MATCH($X27,'Rankings - ELO Model'!$B$2:$B$212,0)) -> 1674.782427
B28: Costa Rica | X28: Brazil | Y28: =INDEX('Rankings - ELO Model'!$C$2:$C$212,MATCH($X28,'Rankings - ELO Model'!$B$2:$B$212,0)) -> CONMEBOL | Z28: =INDEX('Rankings - ELO Model'!$A$2:$A$212,MATCH($X28,'Rankings - ELO Model'!$B$2:$B$212,0)) -> 1 | AA28: 2 | AB28: =INDEX('Rankings - ELO Model'!$D$2:$D$212,MATCH($X28,'Rankings - ELO Model'!$B$2:$B$212,0)) -> 1832.689152
X29: Argentina | Y29: =INDEX('Rankings - ELO Model'!$C$2:$C$212,MATCH($X29,'Rankings - ELO Model'!$B$2:$B$212,0)) -> CONMEBOL | Z29: =INDEX('Rankings - ELO Model'!$A$2:$A$212,MATCH($X29,'Rankings - ELO Model'!$B$2:$B$212,0)) -> 4 | AA29: 5 | AB29: =INDEX('Rankings - ELO Model'!$D$2:$D$212,MATCH($X29,'Rankings - ELO Model'!$B$2:$B$212,0)) -> 1765.132502
B30: * Select Playoff Winners from Drop-Downs | X30: Ecuador | Y30: =INDEX('Rankings - ELO Model'!$C$2:$C$212,MATCH($X30,'Rankings - ELO Model'!$B$2:$B$212,0)) -> CONMEBOL | Z30: =INDEX('Rankings - ELO Model'!$A$2:$A$212,MATCH($X30,'Rankings - ELO Model'!$B$2:$B$212,0)) -> 46 | AA30: 27 | AB30: =INDEX('Rankings - ELO Model'!$D$2:$D$212,MATCH($X30,'Rankings - ELO Model'!$B$2:$B$212,0)) -> 1452.634704
X31: Uruguay | Y31: =INDEX('Rankings - ELO Model'!$C$2:$C$212,MATCH($X31,'Rankings - ELO Model'!$B$2:$B$212,0)) -> CONMEBOL | Z31: =INDEX('Rankings - ELO Model'!$A$2:$A$212,MATCH($X31,'Rankings - ELO Model'!$B$2:$B$212,0)) -> 13 | AA31: 13 | AB31: =INDEX('Rankings - ELO Model'!$D$2:$D$212,MATCH($X31,'Rankings - ELO Model'!$B$2:$B$212,0)) -> 1635.734492
X32: =H27 -> Wales | Y32: =INDEX('Rankings - ELO Model'!$C$2:$C$212,MATCH($X32,'Rankings - ELO Model'!$B$2:$B$212,0)) -> UEFA | Z32: =INDEX('Rankings - ELO Model'!$A$2:$A$212,MATCH($X32,'Rankings - ELO Model'!$B$2:$B$212,0)) -> 18 | AA32: 30 | AB32: =INDEX('Rankings - ELO Model'!$D$2:$D$212,MATCH($X32,'Rankings - ELO Model'!$B$2:$B$212,0)) -> 1588.08201
X33: =B27 -> Peru | Y33: =INDEX('Rankings - ELO Model'!$C$2:$C$212,MATCH($X33,'Rankings - ELO Model'!$B$2:$B$212,0)) -> CONMEBOL | Z33: =INDEX('Rankings - ELO Model'!$A$2:$A$212,MATCH($X33,'Rankings - ELO Model'!$B$2:$B$212,0)) -> 22 | AA33: 31 | AB33: =INDEX('Rankings - ELO Model'!$D$2:$D$212,MATCH($X33,'Rankings - ELO Model'!$B$2:$B$212,0)) -> 1562.320966
X34: =B28 -> Costa Rica | Y34: =INDEX('Rankings - ELO Model'!$C$2:$C$212,MATCH($X34,'Rankings - ELO Model'!$B$2:$B$212,0)) -> CONCACAF | Z34: =INDEX('Rankings - ELO Model'!$A$2:$A$212,MATCH($X34,'Rankings - ELO Model'!$B$2:$B$212,0)) -> 31 | AA34: 32 | AB34: =INDEX('Rankings - ELO Model'!$D$2:$D$212,MATCH($X34,'Rankings - ELO Model'!$B$2:$B$212,0)) -> 1503.094544

Sheet Draw
B2: We Global Football - World Cup 2022 Draw Simulator - Follow on Twitter @We_Global | AA2: We Global Football - UEFA World Cup Qualifying Pots
B4: Group A | G4: Group B | L4: Group C | Q4: Group D | AA4: Pot | AB4: Team | AC4: Rank | AD4: Points | AH4: Pot | AI4: Team | AJ4: Rank | AK4: Points
B5: Team | C5: CONFED | D5: Rank | E5: Points | G5: Team | H5: CONFED | I5: Rank | J5: Points | L5: Team | M5: CONFED | N5: Rank | O5: Points | Q5: Team | R5: CONFED | S5: Rank | T5: Points | AA5: 1 | AB5: =Pots!C5 -> Qatar | AC5: =Pots!E5 -> 51 | AD5: =Pots!F5 -> 1441.413003 | AE5: =RAND() -> 0.7261831114 | AF5: 1 | AH5: 3 | AI5: =Pots!I5 -> Senegal | AJ5: =Pots!K5 -> 20 | AK5: =Pots!L5 -> 1584.159511 | AL5: =RAND() -> 0.7809788883 | AM5: =RANK(AL5,AL5:AL13) -> 3 | AP5: UEFA | AQ5: AFC | AR5: CAF | AS5: CONCACAF | AT5: CONMEBOL | AU5: OFC
B6: =INDEX($AB$5:$AB$13,MATCH(B20,$AF$5:$AF$13,0)) -> Qatar | C6: =VLOOKUP(B6,'Rankings - ELO Model'!$B$2:$E$212,2,FALSE) -> AFC | D6: =INDEX('Rankings - ELO Model'!$A$2:$A$212,MATCH(B6,'Rankings - ELO Model'!$B$2:$B$212,0)) -> 51 | E6: =INDEX('Rankings - ELO Model'!$D$2:$D$212,MATCH(B6,'Rankings - ELO Model'!$B$2:$B$212,0)) -> 1441.413003 | G6: =INDEX($AB$5:$AB$13,MATCH(G20,$AF$5:$AF$13,0)) -> Portugal | H6: =VLOOKUP(G6,'Rankings - ELO Model'!$B$2:$E$212,2,FALSE) -> UEFA | I6: =INDEX('Rankings - ELO Model'!$A$2:$A$212,MATCH(G6,'Rankings - ELO Model'!$B$2:$B$212,0)) -> 8 | J6: =INDEX('Rankings - ELO Model'!$D$2:$D$212,MATCH(G6,'Rankings - ELO Model'!$B$2:$B$212,0)) -> 1674.782427 | L6: =INDEX($AB$5:$AB$13,MATCH(L20,$AF$5:$AF$13,0)) -> Belgium | M6: =VLOOKUP(L6,'Rankings - ELO Model'!$B$2:$E$212,2,FALSE) -> UEFA | N6: =INDEX('Rankings - ELO Model'!$A$2:$A$212,MATCH(L6,'Rankings - ELO Model'!$B$2:$B$212,0)) -> 2 | O6: =INDEX('Rankings - ELO Model'!$D$2:$D$212,MATCH(L6,'Rankings - ELO Model'!$B$2:$B$212,0)) -> 1827.003982 | Q6: =INDEX($AB$5:$AB$13,MATCH(Q20,$AF$5:$AF$13,0)) -> Argentina | R6: =VLOOKUP(Q6,'Rankings - ELO Model'!$B$2:$E$212,2,FALSE) -> CONMEBOL | S6: =INDEX('Rankings - ELO Model'!$A$2:$A$212,MATCH(Q6,'Rankings - ELO Model'!$B$2:$B$212,0)) -> 4 | T6: =INDEX('Rankings - ELO Model'!$D$2:$D$212,MATCH(Q6,'Rankings - ELO Model'!$B$2:$B$212,0)) -> 1765.132502 | AB6: =Pots!C6 -> Brazil | AC6: =Pots!E6 -> 1 | AD6: =Pots!F6 -> 1832.689152 | AE6: =RAND() -> 0.4141618291 | AF6: =RANK(AE6,AE6:AE13)+1 -> 7 | AI6: =Pots!I6 -> Iran | AJ6: =Pots!K6 -> 21 | AK6: =Pots!L6 -> 1564.488687 | AL6: =RAND() -> 0.004264918406 | AM6: =RANK(AL6,AL5:AL13) -> 8 | AP6: =COUNTIF($C$6:$C$9,AP$5) -> 1 | AQ6: 2 | AR6: 0 | AS6: 1 | AT6: 0 | AU6: 0
B7: =INDEX($AB$16:$AB$24,MATCH(B21,$AF$16:$AF$24,0)) -> Netherlands | C7: =VLOOKUP(B7,'Rankings - ELO Model'!$B$2:$E$212,2,FALSE) -> UEFA | D7: =INDEX('Rankings - ELO Model'!$A$2:$A$212,MATCH(B7,'Rankings - ELO Model'!$B$2:$B$212,0)) -> 10 | E7: =INDEX('Rankings - ELO Model'!$D$2:$D$212,MATCH(B7,'Rankings - ELO Model'!$B$2:$B$212,0)) -> 1658.655982 | G7: =INDEX($AB$16:$AB$24,MATCH(G21,$AF$16:$AF$24,0)) -> Denmark | H7: =VLOOKUP(G7,'Rankings - ELO Model'!$B$2:$E$212,2,FALSE) -> UEFA | I7: =INDEX('Rankings - ELO Model'!$A$2:$A$212,MATCH(G7,'Rankings - ELO Model'!$B$2:$B$212,0)) -> 11 | J7: =INDEX('Rankings - ELO Model'!$D$2:$D$212,MATCH(G7,'Rankings - ELO Model'!$B$2:$B$212,0)) -> 1653.601335 | L7: =INDEX($AB$16:$AB$24,MATCH(L21,$AF$16:$AF$24,0)) -> Mexico | M7: =VLOOKUP(L7,'Rankings - ELO Model'!$B$2:$E$212,2,FALSE) -> CONCACAF | N7: =INDEX('Rankings - ELO Model'!$A$2:$A$212,MATCH(L7,'Rankings - ELO Model'!$B$2:$B$212,0)) -> 9 | O7: =INDEX('Rankings - ELO Model'!$D$2:$D$212,MATCH(L7,'Rankings - ELO Model'!$B$2:$B$212,0)) -> 1658.822605 | Q7: =INDEX($AB$16:$AB$24,MATCH(Q21,$AF$16:$AF$24,0)) -> Switzerland | R7: =VLOOKUP(Q7,'Rankings - ELO Model'!$B$2:$E$212,2,FALSE) -> UEFA | S7: =INDEX('Rankings - ELO Model'!$A$2:$A$212,MATCH(Q7,'Rankings - ELO Model'!$B$2:$B$212,0)) -> 14 | T7: =INDEX('Rankings - ELO Model'!$D$2:$D$212,MATCH(Q7,'Rankings - ELO Model'!$B$2:$B$212,0)) -> 1635.315123 | AB7: =Pots!C7 -> Belgium | AC7: =Pots!E7 -> 2 | AD7: =Pots!F7 -> 1827.003982 | AE7: 0.8163946256 | AF7: =RANK(AE7,AE6:AE13)+1 -> 3 | AI7: =Pots!I7 -> Japan | AJ7: =Pots!K7 -> 23 | AK7: =Pots!L7 -> 1553.443872 | AL7: 0.8127665285 | AM7: =RANK(AL7,AL5:AL13) -> 1 | AP7: =COUNTIF($H$6:$H$9,AP$5) -> 2 | AQ7: 0 | AR7: 2 | AS7: 0 | AT7: 0 | AU7: 0
B8: =INDEX($AI$5:$AI$14,MATCH(B22,$AM$5:$AM$14,0)) -> Japan | C8: =VLOOKUP(B8,'Rankings - ELO Model'!$B$2:$E$212,2,FALSE) -> AFC | D8: =INDEX('Rankings - ELO Model'!$A$2:$A$212,MATCH(B8,'Rankings - ELO Model'!$B$2:$B$212,0)) -> 23 | E8: =INDEX('Rankings - ELO Model'!$D$2:$D$212,MATCH(B8,'Rankings - ELO Model'!$B$2:$B$212,0)) -> 1553.443872 | G8: =INDEX($AI$5:$AI$14,MATCH(G22,$AM$5:$AM$14,0)) -> Morocco | H8: =VLOOKUP(G8,'Rankings - ELO Model'!$B$2:$E$212,2,FALSE) -> CAF | I8: =INDEX('Rankings - ELO Model'!$A$2:$A$212,MATCH(G8,'Rankings - ELO Model'!$B$2:$B$212,0)) -> 24 | J8: =INDEX('Rankings - ELO Model'!$D$2:$D$212,MATCH(G8,'Rankings - ELO Model'!$B$2:$B$212,0)) -> 1551.881727 | L8: =INDEX($AI$5:$AI$14,MATCH(L22,$AM$5:$AM$14,0)) -> Senegal | M8: =VLOOKUP(L8,'Rankings - ELO Model'!$B$2:$E$212,2,FALSE) -> CAF | N8: =INDEX('Rankings - ELO Model'!$A$2:$A$212,MATCH(L8,'Rankings - ELO Model'!$B$2:$B$212,0)) -> 20 | O8: =INDEX('Rankings - ELO Model'!$D$2:$D$212,MATCH(L8,'Rankings - ELO Model'!$B$2:$B$212,0)) -> 1584.159511 | Q8: =INDEX($AI$5:$AI$14,MATCH(Q22,$AM$5:$AM$14,0)) -> Poland | R8: =VLOOKUP(Q8,'Rankings - ELO Model'!$B$2:$E$212,2,FALSE) -> UEFA | S8: =INDEX('Rankings - ELO Model'!$A$2:$A$212,MATCH(Q8,'Rankings - ELO Model'!$B$2:$B$212,0)) -> 26 | T8: =INDEX('Rankings - ELO Model'!$D$2:$D$212,MATCH(Q8,'Rankings - ELO Model'!$B$2:$B$212,0)) -> 1544.203645 | AB8: =Pots!C8 -> France | AC8: =Pots!E8 -> 3 | AD8: =Pots!F8 -> 1789.847962 | AE8: 0.5586454975 | AF8: =RANK(AE8,AE6:AE13)+1 -> 5 | AI8: =Pots!I8 -> Morocco | AJ8: =Pots!K8 -> 24 | AK8: =Pots!L8 -> 1551.881727 | AL8: 0.7813713278 | AM8: =RANK(AL8,AL5:AL13) -> 2 | AP8: =COUNTIF($M$6:$M$9,AP$5) -> 1 | AQ8: 1 | AR8: 1 | AS8: 1 | AT8: 0 | AU8: 0
B9: =INDEX($AI$16:$AI$24,MATCH(B23,$AM$16:$AM$24,0)) -> Costa Rica | C9: =VLOOKUP(B9,'Rankings - ELO Model'!$B$2:$E$212,2,FALSE) -> CONCACAF | D9: =INDEX('Rankings - ELO Model'!$A$2:$A$212,MATCH(B9,'Rankings - ELO Model'!$B$2:$B$212,0)) -> 31 | E9: =INDEX('Rankings - ELO Model'!$D$2:$D$212,MATCH(B9,'Rankings - ELO Model'!$B$2:$B$212,0)) -> 1503.094544 | G9: =INDEX($AI$16:$AI$24,MATCH(G23,$AM$16:$AM$24,0)) -> Ghana | H9: =VLOOKUP(G9,'Rankings - ELO Model'!$B$2:$E$212,2,FALSE) -> CAF | I9: =INDEX('Rankings - ELO Model'!$A$2:$A$212,MATCH(G9,'Rankings - ELO Model'!$B$2:$B$212,0)) -> 60 | J9: =INDEX('Rankings - ELO Model'!$D$2:$D$212,MATCH(G9,'Rankings - ELO Model'!$B$2:$B$212,0)) -> 1387.356167 | L9: =INDEX($AI$16:$AI$24,MATCH(L23,$AM$16:$AM$24,0)) -> Saudi Arabia | M9: =VLOOKUP(L9,'Rankings - ELO Model'!$B$2:$E$212,2,FALSE) -> AFC | N9: =INDEX('Rankings - ELO Model'!$A$2:$A$212,MATCH(L9,'Rankings - ELO Model'!$B$2:$B$212,0)) -> 49 | O9: =INDEX('Rankings - ELO Model'!$D$2:$D$212,MATCH(L9,'Rankings - ELO Model'!$B$2:$B$212,0)) -> 1444.685108 | Q9: =INDEX($AI$16:$AI$24,MATCH(Q23,$AM$16:$AM$24,0)) -> Canada | R9: =VLOOKUP(Q9,'Rankings - ELO Model'!$B$2:$E$212,2,FALSE) -> CONCACAF | S9: =INDEX('Rankings - ELO Model'!$A$2:$A$212,MATCH(Q9,'Rankings - ELO Model'!$B$2:$B$212,0)) -> 38 | T9: =INDEX('Rankings - ELO Model'!$D$2:$D$212,MATCH(Q9,'Rankings - ELO Model'!$B$2:$B$212,0)) -> 1478.999291 | AB9: =Pots!C9 -> Argentina | AC9: =Pots!E9 -> 4 | AD9: =Pots!F9 -> 1765.132502 | AE9: 0.6293655055 | AF9: =RANK(AE9,AE6:AE13)+1 -> 4 | AI9: =Pots!I9 -> Serbia | AJ9: =Pots!K9 -> 25 | AK9: =Pots!L9 -> 1547.525841 | AL9: 0.4600872767 | AM9: =RANK(AL9,AL5:AL13) -> 5 | AP9: =COUNTIF($R$6:$R$9,AP$5) -> 2 | AQ9: 0 | AR9: 0 | AS9: 1 | AT9: 1 | AU9: 0
AB10: =Pots!C10 -> England | AC10: =Pots!E10 -> 5 | AD10: =Pots!F10 -> 1761.711533 | AE10: 0.4651289173 | AF10: =RANK(AE10,AE6:AE13)+1 -> 6 | AI10: =Pots!I10 -> Poland | AJ10: =Pots!K10 -> 26 | AK10: =Pots!L10 -> 1544.203645 | AL10: 0.5089240811 | AM10: =RANK(AL10,AL5:AL13) -> 4 | AP10: =COUNTIF($C$13:$C$16,AP$5) -> 3 | AQ10: 0 | AR10: 0 | AS10: 0 | AT10: 1 | AU10: 0
B11: Group E | G11: Group F | L11: Group G | Q11: Group H | AB11: =Pots!C11 -> Spain | AC11: =Pots!E11 -> 7 | AD11: =Pots!F11 -> 1709.193894 | AE11: 0.1515768613 | AF11: =RANK(AE11,AE6:AE13)+1 -> 8 | AI11: =Pots!I11 -> Korea Republic | AJ11: =Pots!K11 -> 29 | AK11: =Pots!L11 -> 1519.538073 | AL11: 0.04580302053 | AM11: =RANK(AL11,AL5:AL13) -> 7 | AP11: =COUNTIF($H$13:$H$16,AP$5) -> 1 | AQ11: 0 | AR11: 2 | AS11: 1 | AT11: 0 | AU11: 0
B12: Team | C12: CONFED | D12: Rank | E12: Points | G12: Team | H12: CONFED | I12: Rank | J12: Points | L12: Team | M12: CONFED | N12: Rank | O12: Points | Q12: Team | R12: CONFED | S12: Rank | T12: Points | AB12: =Pots!C12 -> Portugal | AC12: =Pots!E12 -> 8 | AD12: =Pots!F12 -> 1674.782427 | AE12: 0.9619440214 | AF12: =RANK(AE12,AE6:AE13)+1 -> 2 | AI12: =Pots!I12 -> Tunisia | AJ12: =Pots!K12 -> 35 | AK12: =Pots!L12 -> 1499.802029 | AL12: 0.08361622366 | AM12: =RANK(AL12,AL5:AL13) -> 6 | AP12: =COUNTIF($M$13:$M$16,AP$5) -> 0 | AQ12: 1 | AR12: 0 | AS12: 0 | AT12: 3 | AU12: 0
B13: =INDEX($AB$5:$AB$13,MATCH(B28,$AF$5:$AF$13,0)) -> France | C13: =VLOOKUP(B13,'Rankings - ELO Model'!$B$2:$E$212,2,FALSE) -> UEFA | D13: =INDEX('Rankings - ELO Model'!$A$2:$A$212,MATCH(B13,'Rankings - ELO Model'!$B$2:$B$212,0)) -> 3 | E13: =INDEX('Rankings - ELO Model'!$D$2:$D$212,MATCH(B13,'Rankings - ELO Model'!$B$2:$B$212,0)) -> 1789.847962 | G13: =INDEX($AB$5:$AB$13,MATCH(G28,$AF$5:$AF$13,0)) -> England | H13: =VLOOKUP(G13,'Rankings - ELO Model'!$B$2:$E$212,2,FALSE) -> UEFA | I13: =INDEX('Rankings - ELO Model'!$A$2:$A$212,MATCH(G13,'Rankings - ELO Model'!$B$2:$B$212,0)) -> 5 | J13: =INDEX('Rankings - ELO Model'!$D$2:$D$212,MATCH(G13,'Rankings - ELO Model'!$B$2:$B$212,0)) -> 1761.711533 | L13: =INDEX($AB$5:$AB$13,MATCH(L28,$AF$5:$AF$13,0)) -> Brazil | M13: =VLOOKUP(L13,'Rankings - ELO Model'!$B$2:$E$212,2,FALSE) -> CONMEBOL | N13: =INDEX('Rankings - ELO Model'!$A$2:$A$212,MATCH(L13,'Rankings - ELO Model'!$B$2:$B$212,0)) -> 1 | O13: =INDEX('Rankings - ELO Model'!$D$2:$D$212,MATCH(L13,'Rankings - ELO Model'!$B$2:$B$212,0)) -> 1832.689152 | Q13: =INDEX($AB$5:$AB$13,MATCH(Q28,$AF$5:$AF$13,0)) -> Spain | R13: =VLOOKUP(Q13,'Rankings - ELO Model'!$B$2:$E$212,2,FALSE) -> UEFA | S13: =INDEX('Rankings - ELO Model'!$A$2:$A$212,MATCH(Q13,'Rankings - ELO Model'!$B$2:$B$212,0)) -> 7 | T13: =INDEX('Rankings - ELO Model'!$D$2:$D$212,MATCH(Q13,'Rankings - ELO Model'!$B$2:$B$212,0)) -> 1709.193894 | AP13: =COUNTIF($R$13:$R$16,AP$5) -> 3 | AQ13: 1 | AR13: 0 | AS13: 0 | AT13: 0 | AU13: 0
B14: =INDEX($AB$16:$AB$24,MATCH(B29,$AF$16:$AF$24,0)) -> Germany | C14: =VLOOKUP(B14,'Rankings - ELO Model'!$B$2:$E$212,2,FALSE) -> UEFA | D14: =INDEX('Rankings - ELO Model'!$A$2:$A$212,MATCH(B14,'Rankings - ELO Model'!$B$2:$B$212,0)) -> 12 | E14: =INDEX('Rankings - ELO Model'!$D$2:$D$212,MATCH(B14,'Rankings - ELO Model'!$B$2:$B$212,0)) -> 1650.534775 | G14: =INDEX($AB$16:$AB$24,MATCH(G29,$AF$16:$AF$24,0)) -> USA | H14: =VLOOKUP(G14,'Rankings - ELO Model'!$B$2:$E$212,2,FALSE) -> CONCACAF | I14: =INDEX('Rankings - ELO Model'!$A$2:$A$212,MATCH(G14,'Rankings - ELO Model'!$B$2:$B$212,0)) -> 15 | J14: =INDEX('Rankings - ELO Model'!$D$2:$D$212,MATCH(G14,'Rankings - ELO Model'!$B$2:$B$212,0)) -> 1633.715343 | L14: =INDEX($AB$16:$AB$24,MATCH(L29,$AF$16:$AF$24,0)) -> Uruguay | M14: =VLOOKUP(L14,'Rankings - ELO Model'!$B$2:$E$212,2,FALSE) -> CONMEBOL | N14: =INDEX('Rankings - ELO Model'!$A$2:$A$212,MATCH(L14,'Rankings - ELO Model'!$B$2:$B$212,0)) -> 13 | O14: =INDEX('Rankings - ELO Model'!$D$2:$D$212,MATCH(L14,'Rankings - ELO Model'!$B$2:$B$212,0)) -> 1635.734492 | Q14: =INDEX($AB$16:$AB$24,MATCH(Q29,$AF$16:$AF$24,0)) -> Croatia | R14: =VLOOKUP(Q14,'Rankings - ELO Model'!$B$2:$E$212,2,FALSE) -> UEFA | S14: =INDEX('Rankings - ELO Model'!$A$2:$A$212,MATCH(Q14,'Rankings - ELO Model'!$B$2:$B$212,0)) -> 16 | T14: =INDEX('Rankings - ELO Model'!$D$2:$D$212,MATCH(Q14,'Rankings - ELO Model'!$B$2:$B$212,0)) -> 1621.110548 | AP14: =COUNTIF(AP$6:AP$13,">2") -> 2 | AQ14: =COUNTIF(AQ$6:AQ$13,">1") -> 1 | AR14: =COUNTIF(AR$6:AR$13,">1") -> 2 | AS14: =COUNTIF(AS$6:AS$13,">1") -> 0 | AT14: =COUNTIF(AT$6:AT$13,">1") -> 1 | AU14: =COUNTIF(AU$6:AU$13,">1") -> 0 | AV14: =SUM(AP14:AU14)+AQ21+AQ27+COUNTIF(AP6:AP13,0) -> 10
B15: =INDEX($AI$5:$AI$14,MATCH(B30,$AM$5:$AM$14,0)) -> Serbia | C15: =VLOOKUP(B15,'Rankings - ELO Model'!$B$2:$E$212,2,FALSE) -> UEFA | D15: =INDEX('Rankings - ELO Model'!$A$2:$A$212,MATCH(B15,'Rankings - ELO Model'!$B$2:$B$212,0)) -> 25 | E15: =INDEX('Rankings - ELO Model'!$D$2:$D$212,MATCH(B15,'Rankings - ELO Model'!$B$2:$B$212,0)) -> 1547.525841 | G15: =INDEX($AI$5:$AI$14,MATCH(G30,$AM$5:$AM$14,0)) -> Tunisia | H15: =VLOOKUP(G15,'Rankings - ELO Model'!$B$2:$E$212,2,FALSE) -> CAF | I15: =INDEX('Rankings - ELO Model'!$A$2:$A$212,MATCH(G15,'Rankings - ELO Model'!$B$2:$B$212,0)) -> 35 | J15: =INDEX('Rankings - ELO Model'!$D$2:$D$212,MATCH(G15,'Rankings - ELO Model'!$B$2:$B$212,0)) -> 1499.802029 | L15: =INDEX($AI$5:$AI$14,MATCH(L30,$AM$5:$AM$14,0)) -> Korea Republic | M15: =VLOOKUP(L15,'Rankings - ELO Model'!$B$2:$E$212,2,FALSE) -> AFC | N15: =INDEX('Rankings - ELO Model'!$A$2:$A$212,MATCH(L15,'Rankings - ELO Model'!$B$2:$B$212,0)) -> 29 | O15: =INDEX('Rankings - ELO Model'!$D$2:$D$212,MATCH(L15,'Rankings - ELO Model'!$B$2:$B$212,0)) -> 1519.538073 | Q15: =INDEX($AI$5:$AI$14,MATCH(Q30,$AM$5:$AM$14,0)) -> Iran | R15: =VLOOKUP(Q15,'Rankings - ELO Model'!$B$2:$E$212,2,FALSE) -> AFC | S15: =INDEX('Rankings - ELO Model'!$A$2:$A$212,MATCH(Q15,'Rankings - ELO Model'!$B$2:$B$212,0)) -> 21 | T15: =INDEX('Rankings - ELO Model'!$D$2:$D$212,MATCH(Q15,'Rankings - ELO Model'!$B$2:$B$212,0)) -> 1564.488687 | AA15: Pot | AB15: Team | AC15: Rank | AD15: Points | AH15: Pot | AI15: Team | AJ15: Rank | AK15: Points
B16: =INDEX($AI$16:$AI$24,MATCH(B31,$AM$16:$AM$24,0)) -> Ecuador | C16: =VLOOKUP(B16,'Rankings - ELO Model'!$B$2:$E$212,2,FALSE) -> CONMEBOL | D16: =INDEX('Rankings - ELO Model'!$A$2:$A$212,MATCH(B16,'Rankings - ELO Model'!$B$2:$B$212,0)) -> 46 | E16: =INDEX('Rankings - ELO Model'!$D$2:$D$212,MATCH(B16,'Rankings - ELO Model'!$B$2:$B$212,0)) -> 1452.634704 | G16: =INDEX($AI$16:$AI$24,MATCH(G31,$AM$16:$AM$24,0)) -> Cameroon | H16: =VLOOKUP(G16,'Rankings - ELO Model'!$B$2:$E$212,2,FALSE) -> CAF | I16: =INDEX('Rankings - ELO Model'!$A$2:$A$212,MATCH(G16,'Rankings - ELO Model'!$B$2:$B$212,0)) -> 37 | J16: =INDEX('Rankings - ELO Model'!$D$2:$D$212,MATCH(G16,'Rankings - ELO Model'!$B$2:$B$212,0)) -> 1480.484907 | L16: =INDEX($AI$16:$AI$24,MATCH(L31,$AM$16:$AM$24,0)) -> Peru | M16: =VLOOKUP(L16,'Rankings - ELO Model'!$B$2:$E$212,2,FALSE) -> CONMEBOL | N16: =INDEX('Rankings - ELO Model'!$A$2:$A$212,MATCH(L16,'Rankings - ELO Model'!$B$2:$B$212,0)) -> 22 | O16: =INDEX('Rankings - ELO Model'!$D$2:$D$212,MATCH(L16,'Rankings - ELO Model'!$B$2:$B$212,0)) -> 1562.320966 | Q16: =INDEX($AI$16:$AI$24,MATCH(Q31,$AM$16:$AM$24,0)) -> Wales | R16: =VLOOKUP(Q16,'Rankings - ELO Model'!$B$2:$E$212,2,FALSE) -> UEFA | S16: =INDEX('Rankings - ELO Model'!$A$2:$A$212,MATCH(Q16,'Rankings - ELO Model'!$B$2:$B$212,0)) -> 18 | T16: =INDEX('Rankings - ELO Model'!$D$2:$D$212,MATCH(Q16,'Rankings - ELO Model'!$B$2:$B$212,0)) -> 1588.08201 | AA16: 2 | AB16: =Pots!C15 -> Mexico | AC16: =Pots!E15 -> 9 | AD16: =Pots!F15 -> 1658.822605 | AE16: =RAND() -> 0.4967742006 | AF16: =RANK(AE16,AE16:AE24) -> 3 | AH16: 4 | AI16: =Pots!I15 -> Cameroon | AJ16: =Pots!K15 -> 37 | AK16: =Pots!L15 -> 1480.484907 | AL16: =RAND() -> 0.111685238 | AM16: =RANK(AL16,AL16:AL24) -> 6
AB17: =Pots!C16 -> Netherlands | AC17: =Pots!E16 -> 10 | AD17: =Pots!F16 -> 1658.655982 | AE17: =RAND() -> 0.89419698 | AF17: =RANK(AE17,AE16:AE24) -> 1 | AI17: =Pots!I16 -> Canada | AJ17: =Pots!K16 -> 38 | AK17: =Pots!L16 -> 1478.999291 | AL17: =RAND() -> 0.4713509684 | AM17: =RANK(AL17,AL16:AL24) -> 4 | AP17: Check Playoffs - CONMEBOL/AFC
AB18: =Pots!C17 -> Denmark | AC18: =Pots!E17 -> 11 | AD18: =Pots!F17 -> 1653.601335 | AE18: 0.6242750768 | AF18: =RANK(AE18,AE16:AE24) -> 2 | AI18: =Pots!I17 -> Ecuador | AJ18: =Pots!K17 -> 46 | AK18: =Pots!L17 -> 1452.634704 | AL18: 0.2474876763 | AM18: =RANK(AL18,AL16:AL24) -> 5 | AP18: =INDEX($AB$5:$AB$12,MATCH($AM$22,$AF$5:$AF$12,0)) -> Brazil | AQ18: =VLOOKUP(AP18,'Rankings - ELO Model'!$B$2:$E$212,2,FALSE) -> CONMEBOL
B19: * Groups will run until all conditions are satisfied | AB19: =Pots!C18 -> Germany | AC19: =Pots!E18 -> 12 | AD19: =Pots!F18 -> 1650.534775 | AE19: 0.3555594661 | AF19: =RANK(AE19,AE16:AE24) -> 5 | AI19: =Pots!I18 -> Saudi Arabia | AJ19: =Pots!K18 -> 49 | AK19: =Pots!L18 -> 1444.685108 | AL19: 0.5986908043 | AM19: =RANK(AL19,AL16:AL24) -> 3 | AP19: =INDEX($AB$16:$AB$23,MATCH($AM$22,$AF$16:$AF$23,0)) -> Uruguay | AQ19: =VLOOKUP(AP19,'Rankings - ELO Model'!$B$2:$E$212,2,FALSE) -> CONMEBOL
B20: 1 | G20: 2 | L20: 3 | Q20: 4 | AB20: =Pots!C19 -> Uruguay | AC20: =Pots!E19 -> 13 | AD20: =Pots!F19 -> 1635.734492 | AE20: 0.324714616 | AF20: =RANK(AE20,AE16:AE24) -> 7 | AI20: =Pots!I19 -> Ghana | AJ20: =Pots!K19 -> 60 | AK20: =Pots!L19 -> 1387.356167 | AL20: 0.6439647791 | AM20: =RANK(AL20,AL16:AL24) -> 2 | AP20: =INDEX($AI$5:$AI$12,MATCH($AM$22,$AM$5:$AM$12,0)) -> Korea Republic | AQ20: =VLOOKUP(AP20,'Rankings - ELO Model'!$B$2:$E$212,2,FALSE) -> AFC
B21: 1 | G21: 2 | L21: 3 | Q21: 4 | AB21: =Pots!C20 -> Switzerland | AC21: =Pots!E20 -> 14 | AD21: =Pots!F20 -> 1635.315123 | AE21: 0.4834999767 | AF21: =RANK(AE21,AE16:AE24) -> 4 | AI21: =Pots!I20 -> Wales | AJ21: =Pots!K20 -> 18 | AK21: =Pots!L20 -> 1588.08201 | AL21: 0.008721545191 | AM21: =RANK(AL21,AL16:AL24) -> 8 | AQ21: =COUNTIF($AQ$18:$AQ$20,"AFC")+COUNTIF($AQ$18:$AQ$20,"CONMEBOL") -> 3
B22: 1 | G22: 2 | L22: 3 | Q22: 4 | AB22: =Pots!C21 -> USA | AC22: =Pots!E21 -> 15 | AD22: =Pots!F21 -> 1633.715343 | AE22: 0.3551835618 | AF22: =RANK(AE22,AE16:AE24) -> 6 | AI22: =Pots!I21 -> Peru | AJ22: =Pots!K21 -> 22 | AK22: =Pots!L21 -> 1562.320966 | AL22: 0.01670036326 | AM22: =RANK(AL22,AL16:AL24) -> 7
B23: 1 | G23: 2 | L23: 3 | Q23: 4 | AB23: =Pots!C22 -> Croatia | AC23: =Pots!E22 -> 16 | AD23: =Pots!F22 -> 1621.110548 | AE23: 0.06820366102 | AF23: =RANK(AE23,AE16:AE24) -> 8 | AI23: =Pots!I22 -> Costa Rica | AJ23: =Pots!K22 -> 31 | AK23: =Pots!L22 -> 1503.094544 | AL23: 0.8589089224 | AM23: =RANK(AL23,AL16:AL24) -> 1 | AP23: Check Playoffs - CONCACAF/OFC
B24: 1 | G24: 2 | L24: 3 | Q24: 4 | AP24: =INDEX($AB$5:$AB$12,MATCH($AM$23,$AF$5:$AF$12,0)) -> Qatar | AQ24: =VLOOKUP(AP24,'Rankings - ELO Model'!$B$2:$E$212,2,FALSE) -> AFC
AP25: =INDEX($AB$16:$AB$23,MATCH($AM$23,$AF$16:$AF$23,0)) -> Netherlands | AQ25: =VLOOKUP(AP25,'Rankings - ELO Model'!$B$2:$E$212,2,FALSE) -> UEFA
AP26: =INDEX($AI$5:$AI$12,MATCH($AM$23,$AM$5:$AM$12,0)) -> Japan | AQ26: =VLOOKUP(AP26,'Rankings - ELO Model'!$B$2:$E$212,2,FALSE) -> AFC
AQ27: =COUNTIF($AQ$24:$AQ$26,"CONCACAF")+COUNTIF($AQ$24:$AQ$26,"OFC") -> 0
B28: 5 | G28: 6 | L28: 7 | Q28: 8
B29: 5 | G29: 6 | L29: 7 | Q29: 8
B30: 5 | G30: 6 | L30: 7 | Q30: 8
B31: 5 | G31: 6 | L31: 7 | Q31: 8
B45: Notes
B46: Qatar is in position A1
B47: No group can contain more than 2 UEFA teams or more than 1 team from other confederations
B48: Every group must contain at least 1 UEFA team
B49: UEFA and Inter-Confederation Playoff winners go into Pot 4

Sheet Rankings - ELO Model (hidden)
A1: Rank | B1: Team | C1: CONFED | D1: Total Points | J1: POINTS | K1: RANK
A2: 1 | B2: =INDEX($H$2:$H$212,MATCH(A2,$K$2:$K$212,0)) -> Brazil | C2: =VLOOKUP($B2,$H$2:$K$212,2,FALSE) -> CONMEBOL | D2: =VLOOKUP($B2,$H$2:$K$212,3,FALSE) -> 1832.689152 | E2: =$C2&(COUNTIFS($C$2:$C$212,$C2,$A$2:$A$212,"<"&$A2)+1) -> CONMEBOL1 | H2: Brazil | I2: CONMEBOL | J2: 1832.689152 | K2: =RANK(J2,$J$2:$J$212) -> 1
A3: 2 | B3: =INDEX($H$2:$H$212,MATCH(A3,$K$2:$K$212,0)) -> Belgium | C3: =VLOOKUP($B3,$H$2:$K$212,2,FALSE) -> UEFA | D3: =VLOOKUP($B3,$H$2:$K$212,3,FALSE) -> 1827.003982 | E3: =$C3&(COUNTIFS($C$2:$C$212,$C3,$A$2:$A$212,"<"&$A3)+1) -> UEFA1 | H3: Belgium | I3: UEFA | J3: 1827.003982 | K3: =RANK(J3,$J$2:$J$212) -> 2
A4: 3 | B4: France | C4: UEFA | D4: 1789.847962 | E4: UEFA2 | H4: France | I4: UEFA | J4: 1789.847962 | K4: 3
A5: 4 | B5: Argentina | C5: CONMEBOL | D5: 1765.132502 | E5: CONMEBOL2 | H5: Argentina | I5: CONMEBOL | J5: 1765.132502 | K5: 4
A6: 5 | B6: England | C6: UEFA | D6: 1761.711533 | E6: UEFA3 | H6: England | I6: UEFA | J6: 1761.711533 | K6: 5
A7: 6 | B7: Italy | C7: UEFA | D7: 1723.305578 | E7: UEFA4 | H7: Italy | I7: UEFA | J7: 1723.305578 | K7: 6
A8: 7 | B8: Spain | C8: UEFA | D8: 1709.193894 | E8: UEFA5 | H8: Spain | I8: UEFA | J8: 1709.193894 | K8: 7
A9: 8 | B9: Portugal | C9: UEFA | D9: 1674.782427 | E9: UEFA6 | H9: Portugal | I9: UEFA | J9: 1674.782427 | K9: 8
A10: 9 | B10: Mexico | C10: CONCACAF | D10: 1658.822605 | E10: CONCACAF1 | H10: Mexico | I10: CONCACAF | J10: 1658.822605 | K10: 9
A11: 10 | B11: Netherlands | C11: UEFA | D11: 1658.655982 | E11: UEFA7 | H11: Netherlands | I11: UEFA | J11: 1658.655982 | K11: 10
A12: 11 | B12: Denmark | C12: UEFA | D12: 1653.601335 | E12: UEFA8 | H12: Denmark | I12: UEFA | J12: 1653.601335 | K12: 11
A13: 12 | B13: Germany | C13: UEFA | D13: 1650.534775 | E13: UEFA9 | H13: Germany | I13: UEFA | J13: 1650.534775 | K13: 12
A14: 13 | B14: Uruguay | C14: CONMEBOL | D14: 1635.734492 | E14: CONMEBOL3 | H14: Uruguay | I14: CONMEBOL | J14: 1635.734492 | K14: 13
A15: 14 | B15: Switzerland | C15: UEFA | D15: 1635.315123 | E15: UEFA10 | H15: Switzerland | I15: UEFA | J15: 1635.315123 | K15: 14
A16: 15 | B16: USA | C16: CONCACAF | D16: 1633.715343 | E16: CONCACAF2 | H16: USA | I16: CONCACAF | J16: 1633.715343 | K16: 15
A17: 16 | B17: Croatia | C17: UEFA | D17: 1621.110548 | E17: UEFA11 | H17: Croatia | I17: UEFA | J17: 1621.110548 | K17: 16
A18: 17 | B18: Colombia | C18: CONMEBOL | D18: 1600.519404 | E18: CONMEBOL4 | H18: Colombia | I18: CONMEBOL | J18: 1600.519404 | K18: 17
A19: 18 | B19: Wales | C19: UEFA | D19: 1588.08201 | E19: UEFA12 | H19: Wales | I19: UEFA | J19: 1588.08201 | K19: 18
A20: 19 | B20: Sweden | C20: UEFA | D20: 1584.768744 | E20: UEFA13 | H20: Sweden | I20: UEFA | J20: 1584.768744 | K20: 19
A21: 20 | B21: Senegal | C21: CAF | D21: 1584.159511 | E21: CAF1 | H21: Senegal | I21: CAF | J21: 1584.159511 | K21: 20
A22: 21 | B22: Iran | C22: AFC | D22: 1564.488687 | E22: AFC1 | H22: Iran | I22: AFC | J22: 1564.488687 | K22: 21
A23: 22 | B23: Peru | C23: CONMEBOL | D23: 1562.320966 | E23: CONMEBOL5 | H23: Peru | I23: CONMEBOL | J23: 1562.320966 | K23: 22
A24: 23 | B24: Japan | C24: AFC | D24: 1553.443872 | E24: AFC2 | H24: Japan | I24: AFC | J24: 1553.443872 | K24: 23
A25: 24 | B25: Morocco | C25: CAF | D25: 1551.881727 | E25: CAF2 | H25: Morocco | I25: CAF | J25: 1551.881727 | K25: 24
A26: 25 | B26: Serbia | C26: UEFA | D26: 1547.525841 | E26: UEFA14 | H26: Serbia | I26: UEFA | J26: 1547.525841 | K26: 25
A27: 26 | B27: Poland | C27: UEFA | D27: 1544.203645 | E27: UEFA15 | H27: Poland | I27: UEFA | J27: 1544.203645 | K27: 26
A28: 27 | B28: Ukraine | C28: UEFA | D28: 1535.076369 | E28: UEFA16 | H28: Ukraine | I28: UEFA | J28: 1535.076369 | K28: 27
A29: 28 | B29: Chile | C29: CONMEBOL | D29: 1526.401518 | E29: CONMEBOL6 | H29: Chile | I29: CONMEBOL | J29: 1526.401518 | K29: 28
A30: 29 | B30: Korea Republic | C30: AFC | D30: 1519.538073 | E30: AFC3 | H30: Korea Republic | I30: AFC | J30: 1519.538073 | K30: 29
A31: 30 | B31: Nigeria | C31: CAF | D31: 1504.006753 | E31: CAF3 | H31: Nigeria | I31: CAF | J31: 1504.006753 | K31: 30
A32: 31 | B32: Costa Rica | C32: CONCACAF | D32: 1503.094544 | E32: CONCACAF3 | H32: Costa Rica | I32: CONCACAF | J32: 1503.094544 | K32: 31
A33: 32 | B33: Egypt | C33: CAF | D33: 1500.669097 | E33: CAF4 | H33: Egypt | I33: CAF | J33: 1500.669097 | K33: 32
A34: 33 | B34: Czech Republic | C34: UEFA | D34: 1500.620037 | E34: UEFA17 | H34: Czech Republic | I34: UEFA | J34: 1500.620037 | K34: 33
A35: 34 | B35: Austria | C35: UEFA | D35: 1500.374586 | E35: UEFA18 | H35: Austria | I35: UEFA | J35: 1500.374586 | K35: 34
A36: 35 | B36: Tunisia | C36: CAF | D36: 1499.802029 | E36: CAF5 | H36: Tunisia | I36: CAF | J36: 1499.802029 | K36: 35
A37: 36 | B37: Russia | C37: UEFA | D37: 1493.422108 | E37: UEFA19 | H37: Russia | I37: UEFA | J37: 1493.422108 | K37: 36
A38: 37 | B38: Cameroon | C38: CAF | D38: 1480.484907 | E38: CAF6 | H38: Cameroon | I38: CAF | J38: 1480.484907 | K38: 37
A39: 38 | B39: Canada | C39: CONCACAF | D39: 1478.999291 | E39: CONCACAF4 | H39: Canada | I39: CONCACAF | J39: 1478.999291 | K39: 38
A40: 39 | B40: Scotland | C40: UEFA | D40: 1472.656059 | E40: UEFA20 | H40: Scotland | I40: UEFA | J40: 1472.656059 | K40: 39
A41: 40 | B41: Hungary | C41: UEFA | D41: 1466.083927 | E41: UEFA21 | H41: Hungary | I41: UEFA | J41: 1466.083927 | K41: 40
A42: 41 | B42: Norway | C42: UEFA | D42: 1463.49564 | E42: UEFA22 | H42: Norway | I42: UEFA | J42: 1463.49564 | K42: 41
A43: 42 | B43: Australia | C43: AFC | D43: 1462.290509 | E43: AFC4 | H43: Australia | I43: AFC | J43: 1462.290509 | K43: 42
A44: 43 | B44: Turkey | C44: UEFA | D44: 1461.80903 | E44: UEFA23 | H44: Turkey | I44: UEFA | J44: 1461.80903 | K44: 43
A45: 44 | B45: Algeria | C45: CAF | D45: 1461.264351 | E45: CAF7 | H45: Algeria | I45: CAF | J45: 1461.264351 | K45: 44
A46: 45 | B46: Slovakia | C46: UEFA | D46: 1454.98436 | E46: UEFA24 | H46: Slovakia | I46: UEFA | J46: 1454.98436 | K46: 45
A47: 46 | B47: Ecuador | C47: CONMEBOL | D47: 1452.634704 | E47: CONMEBOL7 | H47: Ecuador | I47: CONMEBOL | J47: 1452.634704 | K47: 46
A48: 47 | B48: Republic of Ireland | C48: UEFA | D48: 1449.477141 | E48: UEFA25 | H48: Republic of Ireland | I48: UEFA | J48: 1449.477141 | K48: 47
A49: 48 | B49: Romania | C49: UEFA | D49: 1446.539655 | E49: UEFA26 | H49: Romania | I49: UEFA | J49: 1446.539655 | K49: 48
A50: 49 | B50: Saudi Arabia | C50: AFC | D50: 1444.685108 | E50: AFC5 | H50: Saudi Arabia | I50: AFC | J50: 1444.685108 | K50: 49
A51: 50 | B51: Paraguay | C51: CONMEBOL | D51: 1443.302069 | E51: CONMEBOL8 | H51: Paraguay | I51: CONMEBOL | J51: 1443.302069 | K51: 50
A52: 51 | B52: Qatar | C52: AFC | D52: 1441.413003 | E52: AFC6 | H52: Qatar | I52: AFC | J52: 1441.413003 | K52: 51
A53: 52 | B53: Mali | C53: CAF | D53: 1436.615948 | E53: CAF8 | H53: Mali | I53: CAF | J53: 1436.615948 | K53: 52
A54: 53 | B54: Côte d'Ivoire | C54: CAF | D54: 1435.279909 | E54: CAF9 | H54: Côte d'Ivoire | I54: CAF | J54: 1435.279909 | K54: 53
A55: 54 | B55: Northern Ireland | C55: UEFA | D55: 1423.550841 | E55: UEFA27 | H55: Northern Ireland | I55: UEFA | J55: 1423.550841 | K55: 54
A56: 55 | B56: Greece | C56: UEFA | D56: 1421.43374 | E56: UEFA28 | H56: Greece | I56: UEFA | J56: 1421.43374 | K56: 55
A57: 56 | B57: Burkina Faso | C57: CAF | D57: 1409.614156 | E57: CAF10 | H57: Burkina Faso | I57: CAF | J57: 1409.614156 | K57: 56
A58: 57 | B58: Finland | C58: UEFA | D58: 1406.866592 | E58: UEFA29 | H58: Finland | I58: UEFA | J58: 1406.866592 | K58: 57
A59: 58 | B59: Venezuela | C59: CONMEBOL | D59: 1398.140694 | E59: CONMEBOL9 | H59: Venezuela | I59: CONMEBOL | J59: 1398.140694 | K59: 58
A60: 59 | B60: Bosnia-Herzegovina | C60: UEFA | D60: 1388.627884 | E60: UEFA30 | H60: Bosnia-Herzegovina | I60: UEFA | J60: 1388.627884 | K60: 59
A61: 60 | B61: Ghana | C61: CAF | D61: 1387.356167 | E61: CAF11 | H61: Ghana | I61: CAF | J61: 1387.356167 | K61: 60
A62: 61 | B62: Panama | C62: CONCACAF | D62: 1382.793197 | E62: CONCACAF5 | H62: Panama | I62: CONCACAF | J62: 1382.793197 | K62: 61
A63: 62 | B63: North Macedonia | C63: UEFA | D63: 1381.07064 | E63: UEFA31 | H63: North Macedonia | I63: UEFA | J63: 1381.07064 | K63: 62
A64: 63 | B64: Iceland | C64: UEFA | D64: 1380.852602 | E64: UEFA32 | H64: Iceland | I64: UEFA | J64: 1380.852602 | K64: 63
A65: 64 | B65: Jamaica | C65: CONCACAF | D65: 1378.754272 | E65: CONCACAF6 | H65: Jamaica | I65: CONCACAF | J65: 1378.754272 | K65: 64
A66: 65 | B66: Slovenia | C66: UEFA | D66: 1378.228648 | E66: UEFA33 | H66: Slovenia | I66: UEFA | J66: 1378.228648 | K66: 65
A67: 66 | B67: =INDEX($H$2:$H$212,MATCH(A67,$K$2:$K$212,0)) -> Albania | C67: =VLOOKUP($B67,$H$2:$K$212,2,FALSE) -> UEFA | D67: =VLOOKUP($B67,$H$2:$K$212,3,FALSE) -> 1371.856608 | E67: =$C67&(COUNTIFS($C$2:$C$212,$C67,$A$2:$A$212,"<"&$A67)+1) -> UEFA34 | H67: Albania | I67: UEFA | J67: 1371.856608 | K67: =RANK(J67,$J$2:$J$212) -> 66
A68: 67 | B68: Congo DR | C68: CAF | D68: 1365.069279 | E68: CAF12 | H68: Congo DR | I68: CAF | J68: 1365.069279 | K68: 67
A69: 68 | B69: United Arab Emirates | C69: AFC | D69: 1356.942195 | E69: AFC7 | H69: United Arab Emirates | I69: AFC | J69: 1356.942195 | K69: 68
A70: 69 | B70: South Africa | C70: CAF | D70: 1356.009906 | E70: CAF13 | H70: South Africa | I70: CAF | J70: 1356.009906 | K70: 69
A71: 70 | B71: Montenegro | C71: UEFA | D71: 1342.789651 | E71: UEFA35 | H71: Montenegro | I71: UEFA | J71: 1342.789651 | K71: 70
A72: 71 | B72: Cape Verde Islands | C72: CAF | D72: 1339.498331 | E72: CAF14 | H72: Cape Verde Islands | I72: CAF | J72: 1339.498331 | K72: 71
A73: 72 | B73: Bulgaria | C73: UEFA | D73: 1338.783148 | E73: UEFA36 | H73: Bulgaria | I73: UEFA | J73: 1338.783148 | K73: 72
A74: 73 | B74: Iraq | C74: AFC | D74: 1336.80253 | E74: AFC8 | H74: Iraq | I74: AFC | J74: 1336.80253 | K74: 73
A75: 74 | B75: El Salvador | C75: CONCACAF | D75: 1331.652907 | E75: CONCACAF7 | H75: El Salvador | I75: CONCACAF | J75: 1331.652907 | K75: 74
A76: 75 | B76: Oman | C76: AFC | D76: 1324.161185 | E76: AFC9 | H76: Oman | I76: AFC | J76: 1324.161185 | K76: 75
A77: 76 | B77: Israel | C77: UEFA | D77: 1305.91766 | E77: UEFA37 | H77: Israel | I77: UEFA | J77: 1305.91766 | K77: 76
A78: 77 | B78: China PR | C78: AFC | D78: 1304.023469 | E78: AFC10 | H78: China PR | I78: AFC | J78: 1304.023469 | K78: 77
A79: 78 | B79: Bolivia | C79: CONMEBOL | D79: 1298.80673 | E79: CONMEBOL10 | H79: Bolivia | I79: CONMEBOL | J79: 1298.80673 | K79: 78
A80: 79 | B80: Curacao | C80: CONCACAF | D80: 1298.386853 | E80: CONCACAF8 | H80: Curacao | I80: CONCACAF | J80: 1298.386853 | K80: 79
A81: 80 | B81: Guinea | C81: CAF | D81: 1293.207356 | E81: CAF15 | H81: Guinea | I81: CAF | J81: 1293.207356 | K81: 80
A82: 81 | B82: Gabon | C82: CAF | D82: 1290.6476 | E82: CAF16 | H82: Gabon | I82: CAF | J82: 1290.6476 | K82: 81
A83: 82 | B83: Honduras | C83: CONCACAF | D83: 1289.472189 | E83: CONCACAF9 | H83: Honduras | I83: CONCACAF | J83: 1289.472189 | K83: 82
A84: 83 | B84: Benin | C84: CAF | D84: 1288.926277 | E84: CAF17 | H84: Benin | I84: CAF | J84: 1288.926277 | K84: 83
A85: 84 | B85: Uzbekistan | C85: AFC | D85: 1286.550191 | E85: AFC11 | H85: Uzbekistan | I85: AFC | J85: 1286.550191 | K85: 84
A86: 85 | B86: Georgia | C86: UEFA | D86: 1276.311168 | E86: UEFA38 | H86: Georgia | I86: UEFA | J86: 1276.311168 | K86: 85
A87: 86 | B87: Uganda | C87: CAF | D87: 1275.495124 | E87: CAF18 | H87: Uganda | I87: CAF | J87: 1275.495124 | K87: 86
A88: 87 | B88: Bahrain | C88: AFC | D88: 1265.760384 | E88: AFC12 | H88: Bahrain | I88: AFC | J88: 1265.760384 | K88: 87
A89: 88 | B89: Syria | C89: AFC | D89: 1264.978691 | E89: AFC13 | H89: Syria | I89: AFC | J89: 1264.978691 | K89: 88
A90: 89 | B90: Zambia | C90: CAF | D90: 1264.385838 | E90: CAF19 | H90: Zambia | I90: CAF | J90: 1264.385838 | K90: 89
A91: 90 | B91: Haiti | C91: CONCACAF | D91: 1261.859818 | E91: CONCACAF10 | H91: Haiti | I91: CONCACAF | J91: 1261.859818 | K91: 90
A92: 91 | B92: Jordan | C92: AFC | D92: 1259.835242 | E92: AFC14 | H92: Jordan | I92: AFC | J92: 1259.835242 | K92: 91
A93: 92 | B93: Armenia | C93: UEFA | D93: 1245.125624 | E93: UEFA39 | H93: Armenia | I93: UEFA | J93: 1245.125624 | K93: 92
A94: 93 | B94: Belarus | C94: UEFA | D94: 1243.226703 | E94: UEFA40 | H94: Belarus | I94: UEFA | J94: 1243.226703 | K94: 93
A95: 94 | B95: Luxembourg | C95: UEFA | D95: 1229.604731 | E95: UEFA41 | H95: Luxembourg | I95: UEFA | J95: 1229.604731 | K95: 94
A96: 95 | B96: Kyrgyzstan | C96: AFC | D96: 1218.480753 | E96: AFC15 | H96: Kyrgyzstan | I96: AFC | J96: 1218.480753 | K96: 95
A97: 96 | B97: Vietnam | C97: AFC | D97: 1215.375877 | E97: AFC16 | H97: Vietnam | I97: AFC | J97: 1215.375877 | K97: 96
A98: 97 | B98: Lebanon | C98: AFC | D98: 1211.707106 | E98: AFC17 | H98: Lebanon | I98: AFC | J98: 1211.707106 | K98: 97
A99: 98 | B99: Congo | C99: CAF | D99: 1211.385502 | E99: CAF20 | H99: Congo | I99: CAF | J99: 1211.385502 | K99: 98
A100: 99 | B100: Palestine | C100: AFC | D100: 1208.904375 | E100: AFC18 | H100: Palestine | I100: AFC | J100: 1208.904375 | K100: 99
A101: 100 | B101: Trinidad and Tobago | C101: CONCACAF | D101: 1206.842548 | E101: CONCACAF11 | H101: Trinidad and Tobago | I101: CONCACAF | J101: 1206.842548 | K101: 100
A102: 101 | B102: Madagascar | C102: CAF | D102: 1205.613482 | E102: CAF21 | H102: Madagascar | I102: CAF | J102: 1205.613482 | K102: 101
A103: 102 | B103: Equatorial Guinea | C103: CAF | D103: 1203.932339 | E103: CAF22 | H103: Equatorial Guinea | I103: CAF | J103: 1203.932339 | K103: 102
A104: 103 | B104: Kenya | C104: CAF | D104: 1202.256464 | E104: CAF23 | H104: Kenya | I104: CAF | J104: 1202.256464 | K104: 103
A105: 104 | B105: New Zealand | C105: OFC | D105: 1198.019807 | E105: OFC1 | H105: New Zealand | I105: OFC | J105: 1198.019807 | K105: 104
A106: 105 | B106: Cyprus | C106: UEFA | D106: 1186.090132 | E106: UEFA42 | H106: Cyprus | I106: UEFA | J106: 1186.090132 | K106: 105
A107: 106 | B107: Sierra Leone | C107: CAF | D107: 1177.780602 | E107: CAF24 | H107: Sierra Leone | I107: CAF | J107: 1177.780602 | K107: 106
A108: 107 | B108: India | C108: AFC | D108: 1174.04065 | E108: AFC19 | H108: India | I108: AFC | J108: 1174.04065 | K108: 107
A109: 108 | B109: Kosovo | C109: UEFA | D109: 1173.897514 | E109: UEFA43 | H109: Kosovo | I109: UEFA | J109: 1173.897514 | K109: 108
A110: 109 | B110: Korea DPR | C110: AFC | D110: 1169.957296 | E110: AFC20 | H110: Korea DPR | I110: AFC | J110: 1169.957296 | K110: 109
A111: 110 | B111: Estonia | C111: UEFA | D111: 1169.057122 | E111: UEFA44 | H111: Estonia | I111: UEFA | J111: 1169.057122 | K111: 110
A112: 111 | B112: Thailand | C112: AFC | D112: 1167.675425 | E112: AFC21 | H112: Thailand | I112: AFC | J112: 1167.675425 | K112: 111
A113: 112 | B113: Namibia | C113: CAF | D113: 1162.926257 | E113: CAF25 | H113: Namibia | I113: CAF | J113: 1162.926257 | K113: 112
A114: 113 | B114: Mauritania | C114: CAF | D114: 1162.481901 | E114: CAF26 | H114: Mauritania | I114: CAF | J114: 1162.481901 | K114: 113
A115: 114 | B115: Tajikistan | C115: AFC | D115: 1159.418318 | E115: AFC22 | H115: Tajikistan | I115: AFC | J115: 1159.418318 | K115: 114
A116: 115 | B116: Guinea-Bissau | C116: CAF | D116: 1158.803918 | E116: CAF27 | H116: Guinea-Bissau | I116: CAF | J116: 1158.803918 | K116: 115
A117: 116 | B117: Niger | C117: CAF | D117: 1153.230694 | E117: CAF28 | H117: Niger | I117: CAF | J117: 1153.230694 | K117: 116
A118: 117 | B118: Libya | C118: CAF | D118: 1149.626739 | E118: CAF29 | H118: Libya | I118: CAF | J118: 1149.626739 | K118: 117
A119: 118 | B119: Guatemala | C119: CONCACAF | D119: 1147.849683 | E119: CONCACAF12 | H119: Guatemala | I119: CONCACAF | J119: 1147.849683 | K119: 118
A120: 119 | B120: Mozambique | C120: CAF | D120: 1146.0897 | E120: CAF30 | H120: Mozambique | I120: CAF | J120: 1146.0897 | K120: 119
A121: 120 | B121: Malawi | C121: CAF | D121: 1145.078915 | E121: CAF31 | H121: Malawi | I121: CAF | J121: 1145.078915 | K121: 120
A122: 121 | B122: Togo | C122: CAF | D122: 1140.047773 | E122: CAF32 | H122: Togo | I122: CAF | J122: 1140.047773 | K122: 121
A123: 122 | B123: Zimbabwe | C123: CAF | D123: 1138.555495 | E123: CAF33 | H123: Zimbabwe | I123: CAF | J123: 1138.555495 | K123: 122
A124: 123 | B124: Gambia | C124: CAF | D124: 1138.193489 | E124: CAF34 | H124: Gambia | I124: CAF | J124: 1138.193489 | K124: 123
A125: 124 | B125: Angola | C125: CAF | D125: 1137.672464 | E125: CAF35 | H125: Angola | I125: CAF | J125: 1137.672464 | K125: 124
A126: 125 | B126: Faroe Islands | C126: UEFA | D126: 1137.39543 | E126: UEFA45 | H126: Faroe Islands | I126: UEFA | J126: 1137.39543 | K126: 125
A127: 126 | B127: Kazakhstan | C127: UEFA | D127: 1134.767525 | E127: UEFA46 | H127: Kazakhstan | I127: UEFA | J127: 1134.767525 | K127: 126
A128: 127 | B128: Antigua and Barbuda | C128: CONCACAF | D128: 1131.075029 | E128: CONCACAF13 | H128: Antigua and Barbuda | I128: CONCACAF | J128: 1131.075029 | K128: 127
A129: 128 | B129: Comoros | C129: CAF | D129: 1130.768233 | E129: CAF36 | H129: Comoros | I129: CAF | J129: 1130.768233 | K129: 128
A130: 129 | B130: Azerbaijan | C130: UEFA | D130: 1127.046427 | E130: UEFA47 | H130: Azerbaijan | I130: UEFA | J130: 1127.046427 | K130: 129
A131: 130 | B131: =INDEX($H$2:$H$212,MATCH(A131,$K$2:$K$212,0)) -> Tanzania | C131: =VLOOKUP($B131,$H$2:$K$212,2,FALSE) -> CAF | D131: =VLOOKUP($B131,$H$2:$K$212,3,FALSE) -> 1123.790147 | E131: =$C131&(COUNTIFS($C$2:$C$212,$C131,$A$2:$A$212,"<"&$A131)+1) -> CAF37 | H131: Tanzania | I131: CAF | J131: 1123.790147 | K131: =RANK(J131,$J$2:$J$212) -> 130
A132: 131 | B132: Central African Republic | C132: CAF | D132: 1122.084958 | E132: CAF38 | H132: Central African Republic | I132: CAF | J132: 1122.084958 | K132: 131
A133: 132 | B133: Sudan | C133: CAF | D133: 1118.399661 | E133: CAF39 | H133: Sudan | I133: CAF | J133: 1118.399661 | K133: 132
A134: 133 | B134: Philippines | C134: AFC | D134: 1117.891854 | E134: AFC23 | H134: Philippines | I134: AFC | J134: 1117.891854 | K134: 133
A135: 134 | B135: Turkmenistan | C135: AFC | D135: 1117.59672 | E135: AFC24 | H135: Turkmenistan | I135: AFC | J135: 1117.59672 | K135: 134
A136: 135 | B136: Latvia | C136: UEFA | D136: 1105.016404 | E136: UEFA48 | H136: Latvia | I136: UEFA | J136: 1105.016404 | K136: 135
A137: 136 | B137: Rwanda | C137: CAF | D137: 1097.162788 | E137: CAF40 | H137: Rwanda | I137: CAF | J137: 1097.162788 | K137: 136
A138: 137 | B138: Lithuania | C138: UEFA | D138: 1092.042141 | E138: UEFA49 | H138: Lithuania | I138: UEFA | J138: 1092.042141 | K138: 137
A139: 138 | B139: Solomon Islands | C139: OFC | D139: 1082.119203 | E139: OFC2 | H139: Solomon Islands | I139: OFC | J139: 1082.119203 | K139: 138
A140: 139 | B140: Burundi | C140: CAF | D140: 1077.377458 | E140: CAF41 | H140: Burundi | I140: CAF | J140: 1077.377458 | K140: 139
A141: 140 | B141: Ethiopia | C141: CAF | D141: 1076.663105 | E141: CAF42 | H141: Ethiopia | I141: CAF | J141: 1076.663105 | K141: 140
A142: 141 | B142: Suriname | C142: CONCACAF | D142: 1073.385465 | E142: CONCACAF14 | H142: Suriname | I142: CONCACAF | J142: 1073.385465 | K142: 141
A143: 142 | B143: Eswatini | C143: CAF | D143: 1072.876693 | E143: CAF43 | H143: Eswatini | I143: CAF | J143: 1072.876693 | K143: 142
A144: 143 | B144: St. Kitts and Nevis | C144: CONCACAF | D144: 1072.304703 | E144: CONCACAF15 | H144: St. Kitts and Nevis | I144: CONCACAF | J144: 1072.304703 | K144: 143
A145: 144 | B145: Nicaragua | C145: CONCACAF | D145: 1062.212909 | E145: CONCACAF16 | H145: Nicaragua | I145: CONCACAF | J145: 1062.212909 | K145: 144
A146: 145 | B146: Kuwait | C146: AFC | D146: 1059.941208 | E146: AFC25 | H146: Kuwait | I146: AFC | J146: 1059.941208 | K146: 145
A147: 146 | B147: Lesotho | C147: CAF | D147: 1059.304965 | E147: CAF44 | H147: Lesotho | I147: CAF | J147: 1059.304965 | K147: 146
A148: 147 | B148: Hong Kong | C148: AFC | D148: 1053.391446 | E148: AFC26 | H148: Hong Kong | I148: AFC | J148: 1053.391446 | K148: 147
A149: 148 | B149: Botswana | C149: CAF | D149: 1051.59158 | E149: CAF45 | H149: Botswana | I149: CAF | J149: 1051.59158 | K149: 148
A150: 149 | B150: Afghanistan | C150: AFC | D150: 1049.765564 | E150: AFC27 | H150: Afghanistan | I150: AFC | J150: 1049.765564 | K150: 149
A151: 150 | B151: Liberia | C151: CAF | D151: 1046.579061 | E151: CAF46 | H151: Liberia | I151: CAF | J151: 1046.579061 | K151: 150
A152: 151 | B152: Yemen | C152: AFC | D152: 1046.257736 | E152: AFC28 | H152: Yemen | I152: AFC | J152: 1046.257736 | K152: 151
A153: 152 | B153: Myanmar | C153: AFC | D153: 1044.560736 | E153: AFC29 | H153: Myanmar | I153: AFC | J153: 1044.560736 | K153: 152
A154: 153 | B154: Andorra | C154: UEFA | D154: 1040.134492 | E154: UEFA50 | H154: Andorra | I154: UEFA | J154: 1040.134492 | K154: 153
A155: 154 | B155: Malaysia | C155: AFC | D155: 1035.058484 | E155: AFC30 | H155: Malaysia | I155: AFC | J155: 1035.058484 | K155: 154
A156: 155 | B156: Dominican Republic | C156: CONCACAF | D156: 1029.41847 | E156: CONCACAF17 | H156: Dominican Republic | I156: CONCACAF | J156: 1029.41847 | K156: 155
A157: 156 | B157: Maldives | C157: AFC | D157: 1025.504272 | E157: AFC31 | H157: Maldives | I157: AFC | J157: 1025.504272 | K157: 156
A158: 157 | B158: Chinese Taipei | C158: AFC | D158: 1017.781681 | E158: AFC32 | H158: Chinese Taipei | I158: AFC | J158: 1017.781681 | K158: 157
A159: 158 | B159: Singapore | C159: AFC | D159: 1012.272524 | E159: AFC33 | H159: Singapore | I159: AFC | J159: 1012.272524 | K159: 158
A160: 159 | B160: Papua New Guinea | C160: OFC | D160: 1008.3908 | E160: OFC3 | H160: Papua New Guinea | I160: OFC | J160: 1008.3908 | K160: 159
A161: 160 | B161: Fiji | C161: OFC | D161: 1004.774644 | E161: OFC4 | H161: Fiji | I161: OFC | J161: 1004.774644 | K161: 160
A162: 161 | B162: Tahiti | C162: OFC | D162: 1003.369191 | E162: OFC5 | H162: Tahiti | I162: OFC | J162: 1003.369191 | K162: 161
A163: 162 | B163: Indonesia | C163: AFC | D163: 1001.610389 | E163: AFC34 | H163: Indonesia | I163: AFC | J163: 1001.610389 | K163: 162
A164: 163 | B164: New Caledonia | C164: OFC | D164: 999.9873454 | E164: OFC6 | H164: New Caledonia | I164: OFC | J164: 999.9873454 | K164: 163
A165: 164 | B165: South Sudan | C165: CAF | D165: 998.4508462 | E165: CAF47 | H165: South Sudan | I165: CAF | J165: 998.4508462 | K165: 164
A166: 165 | B166: Barbados | C166: CONCACAF | D166: 992.8491654 | E166: CONCACAF18 | H166: Barbados | I166: CONCACAF | J166: 992.8491654 | K166: 165
A167: 166 | B167: Bermuda | C167: CONCACAF | D167: 982.4264003 | E167: CONCACAF19 | H167: Bermuda | I167: CONCACAF | J167: 982.4264003 | K167: 166
A168: 167 | B168: Nepal | C168: AFC | D168: 978.8597054 | E168: AFC35 | H168: Nepal | I168: AFC | J168: 978.8597054 | K168: 167
A169: 168 | B169: Vanuatu | C169: OFC | D169: 978.2953727 | E169: OFC7 | H169: Vanuatu | I169: OFC | J169: 978.2953727 | K169: 168
A170: 169 | B170: Malta | C170: UEFA | D170: 971.5639011 | E170: UEFA51 | H170: Malta | I170: UEFA | J170: 971.5639011 | K170: 169
A171: 170 | B171: Grenada | C171: CONCACAF | D171: 968.4931396 | E171: CONCACAF20 | H171: Grenada | I171: CONCACAF | J171: 968.4931396 | K171: 170
A172: 171 | B172: Cambodia | C172: AFC | D172: 966.6116658 | E172: AFC36 | H172: Cambodia | I172: AFC | J172: 966.6116658 | K172: 171
A173: 172 | B173: Puerto Rico | C173: CONCACAF | D173: 962.7694996 | E173: CONCACAF21 | H173: Puerto Rico | I173: CONCACAF | J173: 962.7694996 | K173: 172
A174: 173 | B174: Belize | C174: CONCACAF | D174: 962.2068644 | E174: CONCACAF22 | H174: Belize | I174: CONCACAF | J174: 962.2068644 | K174: 173
A175: 174 | B175: Guyana | C175: CONCACAF | D175: 961.0990412 | E175: CONCACAF23 | H175: Guyana | I175: CONCACAF | J175: 961.0990412 | K175: 174
A176: 175 | B176: St. Vincent and Grenadines | C176: CONCACAF | D176: 960.7054655 | E176: CONCACAF24 | H176: St. Vincent and Grenadines | I176: CONCACAF | J176: 960.7054655 | K176: 175
A177: 176 | B177: St. Lucia | C177: CONCACAF | D177: 953.4547921 | E177: CONCACAF25 | H177: St. Lucia | I177: CONCACAF | J177: 953.4547921 | K177: 176
A178: 177 | B178: Cuba | C178: CONCACAF | D178: 950.9142119 | E178: CONCACAF26 | H178: Cuba | I178: CONCACAF | J178: 950.9142119 | K178: 177
A179: 178 | B179: Montserrat | C179: CONCACAF | D179: 950.7083655 | E179: CONCACAF27 | H179: Montserrat | I179: CONCACAF | J179: 950.7083655 | K179: 178
A180: 179 | B180: Mauritius | C180: CAF | D180: 940.4703945 | E180: CAF48 | H180: Mauritius | I180: CAF | J180: 940.4703945 | K180: 179
A181: 180 | B181: Moldova | C181: UEFA | D181: 932.7934162 | E181: UEFA52 | H181: Moldova | I181: UEFA | J181: 932.7934162 | K181: 180
A182: 181 | B182: Chad | C182: CAF | D182: 931.9839951 | E182: CAF49 | H182: Chad | I182: CAF | J182: 931.9839951 | K182: 181
A183: 182 | B183: Macau | C183: AFC | D183: 922.0998269 | E183: AFC37 | H183: Macau | I183: AFC | J183: 922.0998269 | K183: 182
A184: 183 | B184: Sao Tome e Principe | C184: CAF | D184: 917.6200563 | E184: CAF50 | H184: Sao Tome e Principe | I184: CAF | J184: 917.6200563 | K184: 183
A185: 184 | B185: Dominica | C185: CONCACAF | D185: 916.7185644 | E185: CONCACAF28 | H185: Dominica | I185: CONCACAF | J185: 916.7185644 | K185: 184
A186: 185 | B186: Mongolia | C186: AFC | D186: 911.4932721 | E186: AFC38 | H186: Mongolia | I186: AFC | J186: 911.4932721 | K186: 185
A187: 186 | B187: Bhutan | C187: AFC | D187: 910.9632526 | E187: AFC39 | H187: Bhutan | I187: AFC | J187: 910.9632526 | K187: 186
A188: 187 | B188: Laos | C188: AFC | D188: 909.7159174 | E188: AFC40 | H188: Laos | I188: AFC | J188: 909.7159174 | K188: 187
A189: 188 | B189: Bangladesh | C189: AFC | D189: 903.9791079 | E189: AFC41 | H189: Bangladesh | I189: AFC | J189: 903.9791079 | K189: 188
A190: 189 | B190: Brunei Darussalam | C190: AFC | D190: 903.9039008 | E190: AFC42 | H190: Brunei Darussalam | I190: AFC | J190: 903.9039008 | K190: 189
A191: 190 | B191: American Samoa | C191: OFC | D191: 900.274287 | E191: OFC8 | H191: American Samoa | I191: OFC | J191: 900.274287 | K191: 190
A192: 191 | B192: Cook Islands | C192: OFC | D192: 899.3257356 | E192: OFC9 | H192: Cook Islands | I192: OFC | J192: 899.3257356 | K192: 191
A193: 192 | B193: Liechtenstein | C193: UEFA | D193: 895.0756235 | E193: UEFA53 | H193: Liechtenstein | I193: UEFA | J193: 895.0756235 | K193: 192
A194: 193 | B194: Samoa | C194: OFC | D194: 894.2552847 | E194: OFC10 | H194: Samoa | I194: OFC | J194: 894.2552847 | K194: 193
A195: 194 | B195: =INDEX($H$2:$H$212,MATCH(A195,$K$2:$K$212,0)) -> Djibouti | C195: =VLOOKUP($B195,$H$2:$K$212,2,FALSE) -> CAF | D195: =VLOOKUP($B195,$H$2:$K$212,3,FALSE) -> 875.9756035 | E195: =$C195&(COUNTIFS($C$2:$C$212,$C195,$A$2:$A$212,"<"&$A195)+1) -> CAF51 | H195: Djibouti | I195: CAF | J195: 875.9756035 | K195: =RANK(J195,$J$2:$J$212) -> 194
A196: 195 | B196: Cayman Islands | C196: CONCACAF | D196: 873.6419227 | E196: CONCACAF29 | H196: Cayman Islands | I196: CONCACAF | J196: 873.6419227 | K196: 195
A197: 196 | B197: Seychelles | C197: CAF | D197: 866.8306593 | E197: CAF52 | H197: Seychelles | I197: CAF | J197: 866.8306593 | K197: 196
A198: 197 | B198: Pakistan | C198: AFC | D198: 866.8052488 | E198: AFC43 | H198: Pakistan | I198: AFC | J198: 866.8052488 | K198: 197
A199: 198 | B199: Timor-Leste | C199: AFC | D199: 865.4742262 | E199: AFC44 | H199: Timor-Leste | I199: AFC | J199: 865.4742262 | K199: 198
A200: 199 | B200: Tonga | C200: OFC | D200: 861.8053239 | E200: OFC11 | H200: Tonga | I200: OFC | J200: 861.8053239 | K200: 199
... 12 more rows
